fUSD/lending_fUSD_20251103
["ID","MTS","AMOUNT","RATE_DAILY","PERIOD"]
[392911194,1762128017425,5110.5207297,0.00013981,2]
[392911195,1762128017449,3344.5892703,0.00013981,2]
[392911218,1762128206935,6655.4207297,0.00014003,2]
[392911219,1762128206959,10000.01,0.00014003,2]
[392911220,1762128206983,10000.01,0.00014003,2]
[392911221,1762128207006,10000.01,0.00014003,2]
[392911222,1762128207030,10000.01,0.00014003,2]
[392911223,1762128207058,2166.7192703,0.00014003,2]
[392911224,1762128245226,620.53645,0.00014439,2]
[392911242,1762128307121,150.0,0.00013488,2]
[392911243,1762128307167,150.0,0.0001413,2]
[392911244,1762128307213,150.0,0.00013916,2]
[392911245,1762128307257,150.0,0.00013702,2]
[392911246,1762128307299,150.0,0.00014344,2]
[392911248,1762128309803,150.0,0.00013488,2]
[392911249,1762128309853,150.0,0.00013638,2]
[392911250,1762128309903,150.0,0.00013787,2]
[392911251,1762128309980,150.0,0.00013937,2]
[392911252,1762128310060,150.0,0.00014087,2]
[392911253,1762128310131,150.0,0.00014237,2]
[392911254,1762128310191,150.0,0.00014387,2]
[392911255,1762128311854,150.0,0.00013488,2]
[392911256,1762128311929,150.0,0.00013675,2]
[392911257,1762128311997,150.0,0.00013862,2]
[392911258,1762128312065,150.0,0.0001405,2]
[392911259,1762128312140,150.0,0.00014237,2]
[392911260,1762128312176,150.0,0.00014424,2]
[392911262,1762128314271,152.22718871,0.00013488,2]
[392911263,1762128315891,150.0,0.00013488,2]
[392911264,1762128315931,150.0,0.00013737,2]
[392911266,1762128315978,150.0,0.00013987,2]
[392911267,1762128316044,150.0,0.00014237,2]
[392911268,1762128316120,150.0,0.00014487,2]
[392911270,1762128318277,150.0,0.00013488,2]
[392911271,1762128318320,150.0,0.00013638,2]
[392911272,1762128318403,150.0,0.00013787,2]
[392911273,1762128318468,150.0,0.00013937,2]
[392911274,1762128318539,150.0,0.00014087,2]
[392911275,1762128318612,150.0,0.00014237,2]
[392911276,1762128318680,150.0,0.00014387,2]
[392911278,1762128320916,150.0,0.00013488,2]
[392911279,1762128327319,150.0,0.00013488,2]
[392911280,1762128327660,286.65334943,0.00013488,2]
[392911281,1762128327698,150.0,0.00013488,2]
[392911282,1762128327742,197.84576896,0.00013488,2]
[392911283,1762128327788,150.0,0.00013488,2]
[392911284,1762128327830,150.0,0.00013702,2]
[392911285,1762128327870,150.0,0.00013916,2]
[392911286,1762128327940,150.0,0.0001413,2]
[392911287,1762128328043,150.0,0.00014344,2]
[392911288,1762128330441,150.0,0.00013488,2]
[392911289,1762128330484,150.0,0.00014237,2]
[392911290,1762128330657,153.73969324,0.00013488,2]
[392911291,1762128336553,150.0,0.00013488,2]
[392911292,1762128336624,150.0,0.00013702,2]
[392911293,1762128336671,150.0,0.00013916,2]
[392911294,1762128336718,150.0,0.0001413,2]
[392911295,1762128336781,150.0,0.00014344,2]
[392911296,1762128337155,150.0,0.00013488,2]
[392911297,1762128337237,150.0,0.00013987,2]
[392911298,1762128337333,150.0,0.00014487,2]
[392911302,1762128423824,-166.66,0.00014512,2]
[392911303,1762128423846,-195.0,0.00014518,2]
[392911304,1762128423868,-22.70933448,0.00014524,2]
[392911305,1762128435209,500.0,0.00013,2]
[392911306,1762128435249,500.0,0.00013,2]
[392911307,1762128435472,500.0,0.00013,2]
[392911308,1762128435829,500.0,0.00013,2]
[392911309,1762128435866,500.0,0.00013,2]
[392911310,1762128436012,500.0,0.00013,2]
[392911311,1762128436050,500.0,0.00013,2]
[392911312,1762128436224,500.0,0.00012011,2]
[392911313,1762128436297,500.0,0.00013,2]
[392911314,1762128436600,500.0,0.00012011,2]
[392911315,1762128436685,500.0,0.00012011,2]
[392911316,1762128436995,500.0,0.00012011,2]
[392911317,1762128437351,500.0,0.00012011,2]
[392911318,1762128437693,500.0,0.00012011,2]
[392911319,1762128468400,1346.27030676,0.00013896,2]
[392911320,1762128468426,3872.27969324,0.00013896,2]
[392911323,1762128498179,1000.0,0.00013699,2]
[392911338,1762128632207,-250.0,0.00014515,2]
[392911339,1762128632217,-150.0,0.00014537,2]
[392911340,1762128632226,-150.0,0.00014537,2]
[392911341,1762128632235,-116.0,0.00014558,2]
[392911342,1762128632246,-34.0,0.00014558,2]
[392911343,1762128632255,-150.0,0.00014558,2]
[392911344,1762128632264,-150.0,0.00014558,2]
[392911345,1762128632275,-150.0,0.00014612,2]
[392911346,1762128632284,-74.43183865,0.00014687,2]
[392911347,1762128632479,-75.56816135,0.00014687,2]
[392911348,1762128632488,-150.0,0.00014687,2]
[392911349,1762128632498,-893.21759391,0.00014711,2]
[392911350,1762128632508,-150.0,0.00014737,2]
[392911351,1762128632518,-159.93048841,0.00014746,2]
[392911352,1762128632528,-1200.0,0.0001476,2]
[392911353,1762128632537,-145.57934533,0.00014761,2]
[392911354,1762128632550,-854.42065467,0.00014761,2]
[392911355,1762128632560,-150.0,0.00014772,2]
[392911356,1762128632570,-150.0,0.00014772,2]
[392911357,1762128632579,-150.0,0.00014772,2]
[392911358,1762128632588,-190.39545742,0.0001479,2]
[392911359,1762128632598,-300.0,0.00014798,2]
[392911360,1762128632608,-150.0,0.00014799,2]
[392911361,1762128632618,-1200.0,0.00014799,2]
[392911362,1762128632627,-624.34738135,0.000148,2]
[392911363,1762128632636,-166.66,0.00014812,2]
[392911364,1762128632646,-150.0,0.00014836,2]
[392911365,1762128632656,-150.0,0.00014836,2]
[392911366,1762128632665,-225.01644969,0.00014839,2]
[392911369,1762128632727,-100.4611892,0.00014839,2]
[392911370,1762128632736,-2534.96474436,0.0001485,2]
[392911371,1762128632745,-210.15705,0.0001485,2]
[392911372,1762128632754,-210.15704,0.0001485,2]
[392911373,1762128632763,-150.0,0.00014879,2]
[392911374,1762128632772,-506.21,0.0001488,2]
[392911375,1762128632781,-150.0,0.0001488,2]
[392911376,1762128632790,-150.0,0.0001488,2]
[392911377,1762128632799,-150.0,0.0001488,2]
[392911378,1762128632808,-150.0,0.0001488,2]
[392911379,1762128632817,-150.0,0.0001488,2]
[392911380,1762128632826,-500.0,0.0001488,2]
[392911381,1762128632835,-150.0,0.0001488,2]
[392911382,1762128632844,-150.0,0.0001488,2]
[392911384,1762128632854,-150.0,0.0001488,2]
[392911386,1762128632863,-150.0,0.0001488,2]
[392911387,1762128632873,-500.0,0.0001488,2]
[392911390,1762128632881,-500.0,0.0001488,2]
[392911393,1762128632890,-500.0,0.0001488,2]
[392911397,1762128632899,-205.38813465,0.0001488,2]
[392911401,1762128632908,-150.0,0.0001488,2]
[392911405,1762128632917,-150.0,0.0001488,2]
[392911407,1762128632926,-150.0,0.0001488,2]
[392911410,1762128632936,-151.0,0.0001488,2]
[392911413,1762128632945,-151.0,0.0001488,2]
[392911416,1762128632954,-151.0,0.0001488,2]
[392911418,1762128632964,-151.0,0.0001488,2]
[392911420,1762128632973,-151.0,0.0001488,2]
[392911421,1762128632982,-151.0,0.0001488,2]
[392911423,1762128632991,-151.0,0.0001488,2]
[392911424,1762128633000,-500.0,0.0001488,2]
[392911425,1762128633010,-151.0,0.0001488,2]
[392911426,1762128633019,-151.0,0.0001488,2]
[392911427,1762128633028,-500.0,0.0001488,2]
[392911428,1762128633038,-151.0,0.0001488,2]
[392911429,1762128633047,-500.0,0.0001488,2]
[392911430,1762128633056,-151.0,0.0001488,2]
[392911431,1762128633065,-151.0,0.0001488,2]
[392911432,1762128633076,-151.0,0.0001488,2]
[392911433,1762128633085,-151.0,0.0001488,2]
[392911434,1762128633098,-151.0,0.0001488,2]
[392911435,1762128633107,-151.0,0.0001488,2]
[392911436,1762128633116,-151.0,0.0001488,2]
[392911437,1762128633125,-500.0,0.0001488,2]
[392911438,1762128633135,-200.0,0.0001488,2]
[392911439,1762128633144,-776.45324299,0.00014888,2]
[392911440,1762128633154,-1000.0,0.00014888,2]
[392911441,1762128633163,-150.0,0.00014889,2]
[392911442,1762128633172,-167.2939,0.00014889,2]
[392911443,1762128633182,-53108.6345,0.00014889,2]
[392911444,1762128633192,-224.45112068,0.000149,2]
[392911445,1762128633201,-1337.76739449,0.000149,2]
[392911446,1762128633211,-216.16095379,0.000149,2]
[392911447,1762128633220,-755.68597812,0.000149,2]
[392911448,1762128633230,-2500.0,0.000149,2]
[392911449,1762128633239,-5000.0,0.000149,2]
[392911450,1762128633248,-306.59513733,0.000149,2]
[392911451,1762128633258,-1000.0,0.00014943,2]
[392911452,1762128633267,-150.0,0.00014961,2]
[392911453,1762128633281,-171.53113476,0.00014973,2]
[392911454,1762128633291,-354.82561134,0.00014973,2]
[392911455,1762128633301,-500.0,0.00014973,2]
[392911456,1762128633311,-500.0,0.00014973,2]
[392911457,1762128633320,-501.22801815,0.00014973,2]
[392911458,1762128633329,-500.0,0.00014973,2]
[392911459,1762128633339,-500.0,0.00014973,2]
[392911460,1762128633348,-157.96172807,0.00014973,2]
[392911461,1762128633358,-500.0,0.00014973,2]
[392911462,1762128633367,-595.95234334,0.00014973,2]
[392911463,1762128633376,-167.2848613,0.00014973,2]
[392911464,1762128633386,-508.66972203,0.00014973,2]
[392911465,1762128633395,-500.0,0.00014973,2]
[392911466,1762128633404,-500.0,0.00014973,2]
[392911467,1762128633413,-500.0,0.00014973,2]
[392911468,1762128633423,-150.0,0.00014973,2]
[392911469,1762128633432,-150.0,0.00014973,2]
[392911470,1762128633442,-162.13965807,0.00014973,2]
[392911471,1762128633455,-500.0,0.00014973,2]
[392911472,1762128633465,-150.0,0.00014973,2]
[392911473,1762128633474,-150.0,0.00014973,2]
[392911474,1762128633484,-500.0,0.00014973,2]
[392911475,1762128633493,-150.0,0.00014973,2]
[392911476,1762128633503,-500.0,0.00014973,2]
[392911477,1762128633512,-500.0,0.00014973,2]
[392911478,1762128633522,-503.46395869,0.00014985,2]
[392911479,1762128633533,-299.7999999,0.00014986,2]
[392911480,1762128633543,-150.0,0.00014986,2]
[392911481,1762128633552,-150.0,0.00014986,2]
[392911482,1762128633562,-150.0,0.00014986,2]
[392911483,1762128633572,-157.46456532,0.00014986,2]
[392911484,1762128633582,-901.0,0.00014986,2]
[392911485,1762128633592,-500.0,0.00014986,2]
[392911486,1762128633602,-256.49150835,0.00014986,2]
[392911487,1762128633612,-150.0,0.00014986,2]
[392911488,1762128633622,-150.0,0.00014986,2]
[392911489,1762128633631,-150.0,0.00014986,2]
[392911490,1762128633641,-500.0,0.00014989,2]
[392911491,1762128633650,-500.0,0.00014989,2]
[392911492,1762128633659,-402.69157207,0.00014989,2]
[392911493,1762128633669,-500.0,0.00014989,2]
[392911494,1762128633679,-500.0,0.00014989,2]
[392911495,1762128633689,-500.0,0.00014989,2]
[392911496,1762128633699,-500.0,0.00014989,2]
[392911497,1762128633709,-500.0,0.00014989,2]
[392911498,1762128633719,-500.0,0.00014989,2]
[392911499,1762128633729,-170.67822876,0.0001499,2]
[392911500,1762128633742,-541.83813572,0.0001499,2]
[392911501,1762128633751,-712.51636448,0.0001499,2]
[392911502,1762128633760,-150.0,0.00014991,2]
[392911503,1762128633770,-150.0,0.00014991,2]
[392911504,1762128633780,-155.47366115,0.00014991,2]
[392911508,1762128638072,-264.76218645,0.00014989,2]
[392911509,1762128638081,-500.0,0.00014989,2]
[392911510,1762128638090,-343.95081355,0.00014989,2]
[392911511,1762128638101,-156.04918645,0.00014989,2]
[392911512,1762128638110,-344.52633885,0.00014991,2]
[392911513,1762128638123,-63.5130931,0.00014991,2]
[392911514,1762128638203,-436.4869069,0.00014991,2]
[392911515,1762128638212,-150.0,0.00014991,2]
[392911516,1762128638221,-500.0,0.00014991,2]
[392911517,1762128638231,-286.53945431,0.00014999,2]
[392911518,1762128638240,-206.53367866,0.00014999,2]
[392911519,1762128638250,-394.19184904,0.00014999,2]
[392911520,1762128638259,-500.0,0.00014999,2]
[392911521,1762128638269,-500.0,0.00014999,2]
[392911522,1762128638281,-67.23836332,0.00014999,2]
[392911523,1762128638292,-163.88158868,0.00014999,2]
[392911524,1762128638302,-1001.1571,0.00014999,2]
[392911525,1762128638311,-500.0,0.00014999,2]
[392911526,1762128638321,-500.0,0.00014999,2]
[392911527,1762128638330,-500.0,0.00014999,2]
[392911528,1762128638340,-500.0,0.00014999,2]
[392911529,1762128638350,-500.0,0.00014999,2]
[392911530,1762128638359,-500.0,0.00014999,2]
[392911531,1762128638368,-500.0,0.00014999,2]
[392911532,1762128638380,-2781.26164637,0.00014999,2]
[392911533,1762128638391,-3597.14258723,0.00014999,2]
[392911534,1762128638403,-13.52238397,0.00014999,2]
[392911535,1762128638412,-671.01388889,0.00014999,2]
[392911536,1762128638421,-31335.67794657,0.00015,2]
[392911537,1762128638454,-500.0,0.00014999,2]
[392911538,1762128638464,-145.26630773,0.00015,2]
[392911552,1762128640289,-500.0,0.00014999,2]
[392911553,1762128640299,-500.0,0.00014999,2]
[392911554,1762128640308,-46.53699528,0.00014999,2]
[392911555,1762128640319,-453.46300472,0.00014999,2]
[392911556,1762128640328,-1208.39719528,0.00015,2]
[392911557,1762128640661,-1356.62878231,0.00015,2]
[392911563,1762128643523,-165464.27492686,0.00015,2]
[392911564,1762128643536,-256.385,0.00015,2]
[392911566,1762128650144,-2704.54630264,0.00015,2]
[392911567,1762128650155,-493.06592,0.00015,2]
[392911569,1762128663603,197.43,7.818e-05,2]
[392911570,1762128663806,197.43,8.23e-05,2]
[392911571,1762128664049,197.43,8.641e-05,2]
[392911572,1762128664251,197.43,9.053e-05,2]
[392911573,1762128664468,197.43,9.464e-05,2]
[392911574,1762128664675,197.43,9.876e-05,2]
[392911575,1762128664879,197.43,0.00010287,2]
[392911576,1762128665081,197.43,0.00010698,2]
[392911577,1762128665276,197.43,0.0001111,2]
[392911578,1762128665505,197.43,0.00011521,2]
[392911579,1762128665699,197.43,0.00011933,2]
[392911580,1762128665905,197.43,0.00012344,2]
[392911581,1762128666112,197.43,0.00012756,2]
[392911582,1762128666331,197.43,0.00013167,2]
[392911583,1762128666532,197.43,0.00013579,2]
[392911585,1762128666748,197.43,0.0001399,2]
[392911586,1762128667122,197.43,0.00014402,2]
[392911589,1762128735644,500.0,0.00013,2]
[392911590,1762128736028,500.0,0.00013,2]
[392911591,1762128736328,500.0,0.00013,2]
[392911592,1762128736376,500.0,0.00012011,2]
[392911593,1762128736837,500.0,0.00012011,2]
[392911595,1762128741080,500.0,0.00013,2]
[392911596,1762128746265,416.43859622,0.00013,2]
[392911598,1762128749218,500.0,0.00013,2]
[392911603,1762128813301,1340.14,0.00014242,2]
[392911619,1762128908575,329.65,0.00014,2]
[392911620,1762128910529,329.65,0.00014,2]
[392911621,1762128912537,329.65,0.00014,2]
[392911622,1762128914249,-232.00013723,0.00014699,2]
[392911623,1762128914976,329.65,0.00014,2]
[392911626,1762128917177,329.65,0.00014,2]
[392911630,1762128962057,1517.0,0.00014,2]
[392911638,1762129008815,-200.0,0.00014699,2]
[392911695,1762129208182,477.18,0.00014,2]
[392911699,1762129210086,477.18,0.00014,2]
[392911700,1762129212331,477.18,0.00014,2]
[392911705,1762129214031,146.64140378,0.00014,2]
[392911706,1762129214057,330.53859622,0.00014,2]
[392911711,1762129216281,477.18,0.00014,2]
[392911765,1762129271264,500.0,0.0001399,2]
[392911773,1762129279043,500.0,0.0001399,2]
[392911775,1762129280359,-161.82506066,0.00014607,2]
[392911790,1762129299318,278.49,0.00014056,2]
[392911859,1762129407449,343.05,0.00014062,2]
[392911869,1762129443547,7570.75140378,0.00014068,2]
[392911870,1762129443575,10000.01,0.00014068,2]
[392911871,1762129443602,8657.50859622,0.00014068,2]
[392911884,1762129507557,150.0,0.00013488,2]
[392911895,1762129514341,150.00000001,0.00013488,2]
[392911896,1762129514665,150.0,0.00013488,2]
[392911902,1762129521555,153.62878228,0.00013488,2]
[392911903,1762129522149,-167.1132101,0.00014587,2]
[392911904,1762129522616,738.87262149,0.00014072,2]
[392911905,1762129522643,2012.12737851,0.00014072,2]
[392911906,1762129527222,150.00000001,0.00013488,2]
[392911907,1762129528499,150.00000001,0.00013488,2]
[392911909,1762129534886,1173.5234784,9e-05,2]
[392911910,1762129552195,6514.35914307,0.0001399,2]
[392911911,1762129552220,4996.03388241,0.0001399,2]
[392911912,1762129559885,3746.31497681,8e-05,2]
[392911919,1762129604307,250.0,0.00013948,2]
[392911922,1762129670794,657.81,0.00013955,2]
[392911940,1762129789389,-250.00223334,0.00014591,2]
[392911941,1762129789656,349.85114078,0.00013943,2]
[392911942,1762129789682,10000.01,0.00013943,2]
[392911943,1762129789704,10000.01,0.00013943,2]
[392911944,1762129789725,10000.01,0.00013943,2]
[392911945,1762129789747,5763.90885922,0.00013943,2]
[392911946,1762129791422,-167.11321011,0.00014591,2]
[392911947,1762129794406,-164.46490794,0.00014591,2]
[392911948,1762129796483,1852.42,0.00013943,2]
[392911959,1762129832254,-311.63724252,0.00014591,2]
[392911961,1762129832265,-250.0,0.00014628,2]
[392911963,1762129832274,-167.1132101,0.00014699,2]
[392911965,1762129832283,-300.0,0.00014798,2]
[392911966,1762129832292,-219.02969747,0.00014798,2]
[392911967,1762129832303,-980.97030253,0.00014798,2]
[392911968,1762129832313,-379.11965454,0.00014799,2]
[392911969,1762129832324,-33.88034546,0.00014799,2]
[392911970,1762129832333,-508.67373169,0.000148,2]
[392911971,1762129832343,-197.43,0.00014813,2]
[392911972,1762129832352,-0.04112282,0.00014843,2]
[392911973,1762129832364,-1446.41443638,0.00014843,2]
[392911974,1762129832373,-709.85891657,0.00014849,2]
[392911975,1762129832384,-736.59664255,0.00014849,2]
[392911976,1762129832393,-168.12563,0.0001485,2]
[392911977,1762129832402,-1446.45555912,0.00014856,2]
[392911978,1762129832411,-799.10652588,0.00014862,2]
[392911979,1762129832422,-433.32335673,0.00014862,2]
[392911980,1762129832434,-214.02567651,0.00014862,2]
[392911981,1762129832443,-67.20982339,0.00014868,2]
[392911982,1762129832454,-487.24168,0.00014868,2]
[392911983,1762129832465,-892.00405573,0.00014868,2]
[392911984,1762129832474,-500.0,0.00014873,2]
[392911985,1762129832483,-475.34507741,0.00014873,2]
[392911986,1762129832492,-1446.45555912,0.00014875,2]
[392911987,1762129832501,-24.13276148,0.0001488,2]
[392911988,1762129832512,-823.88404497,0.0001488,2]
[392911989,1762129832534,-1648.70095954,0.0001488,2]
[392911990,1762129832544,-3.28223401,0.0001488,2]
[392911991,1762129832553,-1446.45555912,0.00014881,2]
[392911992,1762129832562,-4934.025,0.00014891,2]
[392911993,1762129832571,-336.703,0.00014891,2]
[392911994,1762129832580,-680.11738029,0.00014891,2]
[392911995,1762129832589,-344.85944211,0.00014891,2]
[392911996,1762129832598,-2516.28942425,0.00014892,2]
[392911997,1762129832607,-680.11738024,0.00014898,2]
[392911998,1762129832616,-1000.0,0.00014898,2]
[392911999,1762129832625,-500.0,0.00014899,2]
[392912000,1762129832634,-500.0,0.00014899,2]
[392912001,1762129832643,-500.0,0.00014899,2]
[392912002,1762129832653,-500.0,0.00014899,2]
[392912003,1762129832663,-500.0,0.00014899,2]
[392912004,1762129832671,-500.0,0.00014899,2]
[392912005,1762129832681,-500.0,0.00014899,2]
[392912006,1762129832690,-500.0,0.00014899,2]
[392912008,1762129832699,-500.0,0.00014899,2]
[392912010,1762129832708,-500.0,0.00014899,2]
[392912012,1762129832717,-500.0,0.00014899,2]
[392912014,1762129832726,-500.0,0.00014899,2]
[392912015,1762129832736,-500.0,0.00014899,2]
[392912017,1762129832745,-500.0,0.00014899,2]
[392912019,1762129832754,-500.0,0.00014899,2]
[392912021,1762129832764,-500.0,0.00014899,2]
[392912023,1762129832773,-500.0,0.00014899,2]
[392912025,1762129832782,-500.0,0.00014899,2]
[392912026,1762129832791,-500.0,0.00014899,2]
[392912028,1762129832800,-500.0,0.00014899,2]
[392912030,1762129832810,-176.79773965,0.00014899,2]
[392912032,1762129832819,-500.0,0.00014899,2]
[392912034,1762129832828,-500.0,0.00014899,2]
[392912036,1762129832838,-500.0,0.00014899,2]
[392912038,1762129832848,-500.0,0.00014899,2]
[392912040,1762129832857,-500.0,0.00014899,2]
[392912042,1762129832869,-500.0,0.00014899,2]
[392912044,1762129832879,-500.0,0.00014899,2]
[392912046,1762129832888,-500.0,0.00014899,2]
[392912048,1762129832898,-500.0,0.00014899,2]
[392912049,1762129832907,-379.7716621,0.00014899,2]
[392912051,1762129832920,-120.2283379,0.00014899,2]
[392912053,1762129832928,-401.80854988,0.00014899,2]
[392912055,1762129832940,-98.19145012,0.00014899,2]
[392912057,1762129832949,-500.0,0.00014899,2]
[392912058,1762129832958,-500.0,0.00014899,2]
[392912060,1762129832967,-38.05895481,0.00014899,2]
[392912062,1762129832978,-461.94104519,0.00014899,2]
[392912064,1762129832987,-500.0,0.00014899,2]
[392912065,1762129832996,-500.0,0.00014899,2]
[392912066,1762129833005,-500.0,0.00014899,2]
[392912067,1762129833013,-500.0,0.00014899,2]
[392912068,1762129833022,-500.0,0.00014899,2]
[392912069,1762129833031,-500.0,0.00014899,2]
[392912070,1762129833040,-199.99999999,0.00014899,2]
[392912071,1762129833049,-500.0,0.00014899,2]
[392912072,1762129833061,-500.0,0.00014899,2]
[392912073,1762129833070,-500.0,0.00014899,2]
[392912074,1762129833079,-500.0,0.00014899,2]
[392912075,1762129833088,-500.0,0.00014899,2]
[392912076,1762129833097,-500.0,0.00014899,2]
[392912077,1762129833106,-500.0,0.00014899,2]
[392912078,1762129833115,-500.0,0.00014899,2]
[392912079,1762129833124,-500.0,0.00014899,2]
[392912080,1762129833133,-348.2676867,0.00014899,2]
[392912081,1762129833145,-151.7323133,0.00014899,2]
[392912082,1762129833154,-500.0,0.00014899,2]
[392912083,1762129833163,-506.54,0.00014899,2]
[392912084,1762129833172,-1143.3843,0.000149,2]
[392912085,1762129833181,-978.3434067,0.000149,2]
[392912086,1762129833192,-346.40949038,0.000149,2]
[392912087,1762129833210,-23427.470458,0.000149,2]
[392912094,1762129838196,-1100.3964,0.00014602,2]
[392912095,1762129838207,-724.56512196,0.00014602,2]
[392912096,1762129838216,-1446.45555912,0.00014887,2]
[392912097,1762129838225,-21907.65217563,0.000149,2]
[392912098,1762129838260,-383.32589679,0.000149,2]
[392912099,1762129838272,-2853.58454971,0.000149,2]
[392912100,1762129838283,-37793.63751444,0.000149,2]
[392912101,1762129838294,-5423.63540835,0.000149,2]
[392912102,1762129838303,-1000.0,0.000149,2]
[392912103,1762129838313,-185.2808175,0.000149,2]
[392912104,1762129838323,-562.40115044,0.000149,2]
[392912105,1762129838332,-442.32,0.000149,2]
[392912106,1762129838342,-680.11738024,0.00014905,2]
[392912107,1762129838351,-680.11738024,0.00014911,2]
[392912108,1762129838362,-680.11738024,0.00014918,2]
[392912109,1762129838372,-680.11738024,0.00014925,2]
[392912110,1762129838381,-680.11738024,0.00014932,2]
[392912111,1762129838391,-680.11738024,0.00014938,2]
[392912112,1762129838400,-8260.13072239,0.00014943,2]
[392912113,1762129838409,-239.84119403,0.00014943,2]
[392912114,1762129838418,-151.0,0.00014943,2]
[392912115,1762129838428,-578.20924308,0.00014943,2]
[392912116,1762129838438,-680.11738024,0.00014945,2]
[392912117,1762129838447,-680.11738024,0.00014952,2]
[392912118,1762129838457,-500.0,0.00014973,2]
[392912119,1762129838466,-500.0,0.00014973,2]
[392912120,1762129838475,-500.0,0.00014973,2]
[392912122,1762129838485,-527.20712857,0.00014973,2]
[392912124,1762129838494,-500.0,0.00014973,2]
[392912125,1762129838503,-500.0,0.00014973,2]
[392912126,1762129838513,-500.0,0.00014973,2]
[392912127,1762129838522,-500.0,0.00014973,2]
[392912128,1762129838531,-500.0,0.00014973,2]
[392912130,1762129838540,-185.21334853,0.00014973,2]
[392912131,1762129838552,-323.8215996,0.00014973,2]
[392912132,1762129838560,-452.07170924,0.00014973,2]
[392912133,1762129838570,-500.0,0.00014973,2]
[392912134,1762129838579,-500.0,0.00014973,2]
[392912135,1762129838588,-500.0,0.00014973,2]
[392912136,1762129838596,-500.0,0.00014973,2]
[392912137,1762129838606,-509.79482902,0.00014973,2]
[392912138,1762129838615,-500.0,0.00014973,2]
[392912139,1762129838624,-500.0,0.00014973,2]
[392912140,1762129838633,-131.28737276,0.00014973,2]
[392912141,1762129838644,-368.71262724,0.00014973,2]
[392912142,1762129838653,-500.0,0.00014973,2]
[392912143,1762129838662,-500.0,0.00014973,2]
[392912144,1762129838671,-500.0,0.00014973,2]
[392912145,1762129838681,-500.0,0.00014973,2]
[392912146,1762129838690,-402.85543714,0.00014979,2]
[392912148,1762129838700,-287.36194724,0.00014979,2]
[392912149,1762129838709,-500.0,0.00014979,2]
[392912151,1762129838718,-500.0,0.00014979,2]
[392912153,1762129838728,-381.13392269,0.00014979,2]
[392912155,1762129838738,-6675.17762895,0.0001498,2]
[392912165,1762129838821,-47122.65575537,0.0001498,2]
[392912167,1762129838831,-168.12564,0.0001498,2]
[392912169,1762129838840,-890.41706766,0.00014988,2]
[392912171,1762129838850,-237.50545482,0.0001499,2]
[392912173,1762129838860,-237.50545482,0.0001499,2]
[392912175,1762129838870,-20438.37042045,0.00014991,2]
[392912335,1762129840367,-1446.45555912,0.00014894,2]
[392912337,1762129840378,-12449.98073177,0.00014991,2]
[392912340,1762129840391,-36336.51291817,0.00014991,2]
[392912342,1762129840402,-40818.90951778,0.00014991,2]
[392912344,1762129840413,-63332.52962175,0.00014991,2]
[392912364,1762129840584,-2539.37121769,0.00014991,2]